bitfinex-derivatives/quotes_ETHF0:USTF0_20250627
["timestamp","ask_amount","ask_price","bid_price","bid_amount"]
[1751009177722,0.7243,2448.5,2448.2,4.6193]
[1751009178122,0.40826,2448.3,2448.2,4.6193]
[1751009178326,0.40826,2448.3,2447.7,3.2078]
[1751009178327,2.93541043,2448.3,2447.7,3.2078]
[1751009178529,0.40825,2448.4,2448.1,3.34369043]
[1751009178825,3.2078,2448.7,2448.3,2.93541043]
[1751009179030,3.61599,2448.7,2448.6,2.93541043]
[1751009179420,3.2078,2448.7,2448.6,2.93541043]
[1751009179819,0.40823,2448.5,2448.4,0.6893]
[1751009180026,2.93541043,2448.6,2448.2,0.6859]
[1751009180225,3.61606,2448.3,2448.2,7.4249]
[1751009180425,3.61606,2448.3,2448.2,0.6859]
[1751009180625,3.61606,2448.3,2448.2,32.9359]
[1751009180827,0.40826,2448.3,2448.2,32.9359]
[1751009182026,3.61606,2448.3,2448.2,32.9359]
[1751009182235,3.61606,2448.3,2448.2,32.247]
[1751009182625,3.61606,2448.3,2447.9,4.33531043]
[1751009182626,0.4083,2448.1,2447.9,4.33531043]
[1751009182931,0.40827,2448.3,2448.0,32.6513]
[1751009183123,0.40827,2448.3,2448.1,1.3578]
[1751009183727,3.9144,2448.6,2448.1,4.29321043]
[1751009183929,3.2078,2448.6,2448.5,2.93541043]
[1751009184227,3.2078,2448.6,2448.5,28.43541043]
[1751009184621,3.2078,2448.6,2448.5,30.53871043]
[1751009184825,3.2078,2448.6,2448.5,31.65684043]
[1751009185027,3.61601,2448.6,2448.5,28.3132]
[1751009185322,3.2078,2448.6,2448.4,6.739]
[1751009185524,3.2078,2448.6,2448.5,25.495]
[1751009185828,4.5716,2448.6,2448.5,25.495]
[1751009186232,4.16339,2448.6,2448.5,25.497]
[1751009186527,4.16339,2448.6,2448.2,0.7282]
[1751009186528,0.40826,2448.3,2448.2,0.7282]
[1751009186730,0.4083,2448.1,2447.9,0.7099]
[1751009186930,0.4083,2448.1,2448.0,32.9602]
[1751009187324,0.4083,2448.1,2448.0,32.9582]
[1751009187524,0.40831,2448.0,2447.9,0.7099]
[1751009187727,0.40834,2447.8,2447.7,49.7026]
[1751009187933,0.40834,2447.8,2447.7,81.9326]
[1751009188533,3.2078,2448.0,2447.4,6.739]
[1751009188731,3.2078,2447.5,2447.2,3.81213016]
[1751009188924,5.3068,2447.9,2447.3,25.487]
[1751009189126,0.40837,2447.7,2447.3,27.33452]
[1751009189331,0.40835,2447.8,2447.3,29.35003016]
[1751009189625,1.36720521,2447.7,2447.3,27.33453]
[1751009189826,0.95882521,2447.6,2447.4,0.40842]
[1751009190027,0.40837,2447.7,2447.5,1.3734]
[1751009190226,0.40837,2447.7,2447.6,25.484]
[1751009190526,0.95844646,2447.7,2447.6,25.484]
[1751009190928,0.95844646,2447.7,2447.6,26.8574]
[1751009191132,0.95844646,2447.7,2447.6,34.00478]
[1751009191326,0.40831,2448.1,2447.8,0.40834]
[1751009191525,1.36609576,2448.0,2447.9,27.5425]
[1751009191736,0.95778576,2448.0,2447.9,27.5425]
[1751009192235,1.36609576,2448.0,2447.9,27.5425]
[1751009192431,0.95778576,2448.0,2447.9,27.5425]
[1751009192627,1.36609576,2448.0,2447.9,27.5425]
[1751009192827,0.40833,2447.9,2447.8,6.739]
[1751009193033,4.57391576,2447.9,2447.8,32.211]
[1751009193827,0.40832,2448.0,2447.8,32.211]
[1751009194026,0.40832,2448.0,2447.9,1.4485]
[1751009194221,0.95864003,2448.0,2447.9,1.85682]
[1751009194436,0.95864003,2448.0,2447.9,1.4485]
[1751009194933,0.95864003,2448.0,2447.9,1.85683]
[1751009195134,0.95864003,2448.0,2447.9,1.4485]
[1751009195337,1.36696003,2448.0,2447.9,1.4485]
[1751009195635,0.95864003,2448.0,2447.9,1.4485]
[1751009196731,0.40831,2448.1,2447.9,1.4485]
[1751009197330,3.6161,2448.2,2447.9,1.4485]
[1751009197524,0.95867404,2448.1,2447.9,1.85683]
[1751009197730,5.63657385,2448.6,2447.9,7.08770551]
[1751009198036,0.40826,2448.4,2448.1,0.4083]
[1751009198334,0.95841348,2448.3,2448.2,27.4489]
[1751009198635,0.95841348,2448.3,2448.2,34.1889]
[1751009199135,4.57448348,2448.3,2448.2,34.1889]
[1751009199535,4.57448348,2448.3,2448.2,2.0049]
[1751009199730,4.57448348,2448.3,2448.2,34.1889]
[1751009199936,4.16621348,2448.3,2448.2,34.1889]
[1751009200128,0.95841348,2448.3,2448.2,34.1889]
[1751009200833,0.95841348,2448.3,2448.2,34.59719]
[1751009201435,0.40824,2448.5,2448.2,34.59718]
[1751009201638,0.95831812,2448.4,2448.3,1.3747]
[1751009201936,0.95831812,2448.4,2448.3,27.5427]
[1751009202131,0.40825,2448.5,2448.3,27.5427]
[1751009202330,0.40825,2448.4,2448.3,27.5427]
[1751009202730,1.36652579,2448.4,2448.3,27.5427]
[1751009203734,1.36652579,2448.4,2448.3,26.168]
[1751009205533,1.36652579,2448.4,2448.3,32.906]
[1751009205733,1.36652579,2448.4,2448.3,25.442]
[1751009205935,0.4083,2448.1,2448.0,1.3957]
[1751009206234,0.4083,2448.1,2448.0,32.182]
[1751009206628,0.4083,2448.1,2448.0,25.442]
[1751009206828,0.40832,2448.0,2447.9,1.38]
[1751009207034,0.40832,2448.0,2447.9,33.562]
[1751009207230,0.40832,2448.0,2447.9,2.8172]
[1751009207424,0.40832,2448.0,2447.9,34.9992]
[1751009207736,0.40832,2448.0,2447.9,33.562]
[1751009208532,0.40834,2447.9,2447.8,5.63173016]
[1751009208736,0.40834,2447.9,2447.8,37.81373016]
[1751009209234,0.40834,2447.9,2447.8,34.60593016]
[1751009209433,0.40834,2447.9,2447.8,32.182]
[1751009211133,0.40835,2447.8,2447.7,2.42393016]
[1751009211339,3.15215,2447.8,2447.7,2.42393016]
[1751009211539,3.15215,2447.8,2447.7,27.86593016]
[1751009211742,3.15215,2447.8,2447.7,25.442]
[1751009212540,0.40839,2447.6,2447.5,9.16393016]
[1751009212837,0.40839,2447.6,2447.5,34.60593016]
[1751009213038,0.40839,2447.6,2447.5,27.86493016]
[1751009213229,0.40839,2447.6,2447.5,2.42393016]
[1751009213435,0.40839,2447.6,2447.5,27.86493016]
[1751009213837,3.61619,2447.6,2447.5,2.42393016]
[1751009214035,3.61619,2447.6,2447.5,27.86693016]
[1751009214341,3.61619,2447.6,2447.5,25.443]
[1751009214941,3.61619,2447.6,2447.5,27.86693016]
[1751009215241,3.61619,2447.6,2447.5,28.53453016]
[1751009215844,3.2078,2447.6,2447.5,28.53453016]
[1751009216041,3.2078,2447.6,2447.5,32.87070522]
[1751009216239,3.61619,2447.6,2447.5,32.87070522]
[1751009216541,3.2078,2447.6,2447.5,32.87070522]
[1751009216737,0.40839,2447.6,2447.5,29.93383016]
[1751009217243,0.40839,2447.6,2447.5,27.5099]
[1751009217546,0.40839,2447.6,2447.5,26.1106]
[1751009220147,3.61618,2447.7,2447.5,27.8481]
[1751009220447,0.40839,2447.6,2447.5,27.4397]
[1751009221838,3.61617,2447.7,2447.5,27.84809]
[1751009222042,3.2078,2447.7,2447.6,4.67436506]
[1751009222745,3.2078,2447.7,2447.6,4.26597506]
[1751009222952,3.61617,2447.7,2447.6,4.26597506]
[1751009223249,3.2078,2447.7,2447.6,1.73749]
[1751009223844,3.9152,2448.1,2447.6,4.26597506]
[1751009224152,0.97590986,2448.0,2447.8,2.93687506]
[1751009224450,5.36564891,2448.4,2447.9,28.2713]
[1751009224451,0.40826,2448.4,2447.9,28.2713]
[1751009224646,0.97578342,2448.3,2448.2,2.93687506]
[1751009224847,0.97578342,2448.3,2448.2,36.97206506]
[1751009225747,0.97578342,2448.3,2448.2,41.97206506]
[1751009227851,5.63657385,2448.8,2448.2,41.56377506]
[1751009228043,3.2078,2448.8,2448.7,3.34507506]
[1751009228248,3.2078,2448.8,2448.7,35.52407506]
[1751009229250,3.2078,2448.8,2448.7,35.11587506]
[1751009229454,3.2078,2448.8,2448.7,35.52407506]
[1751009229642,0.40818,2448.9,2448.7,35.52407506]
[1751009229846,0.40817,2448.9,2448.8,1.4263]
[1751009230048,0.40816,2449.0,2448.8,1.4263]
[1751009230249,0.40816,2449.0,2448.9,25.434]
[1751009230949,3.61595,2449.1,2448.9,25.84217]
[1751009231147,0.40815,2449.0,2448.9,25.434]
[1751009231366,0.40817,2448.9,2448.8,1.4263]
[1751009231555,0.40821,2448.7,2448.5,0.6812]
[1751009231856,0.40822,2448.7,2448.6,32.174]
[1751009232051,0.40819,2448.8,2448.6,32.174]
[1751009232249,0.40819,2448.8,2448.6,1.3545]
[1751009232446,0.40819,2448.8,2448.7,32.167]
[1751009232649,9.86119074,2449.1,2448.7,6.734]
[1751009232847,3.61597,2448.9,2448.8,25.433]
[1751009235059,4.30737,2448.9,2448.8,25.433]
[1751009235359,0.4082,2448.7,2448.5,1.08944]
[1751009235559,0.4082,2448.7,2448.6,32.163]
[1751009237462,0.40822,2448.6,2448.5,0.6812]
[1751009237664,0.40822,2448.6,2448.5,32.8442]
[1751009238162,0.40821,2448.7,2448.5,32.8442]
[1751009238363,0.40819,2448.8,2448.6,0.40821]
[1751009238564,0.40819,2448.8,2448.7,25.427]
[1751009240562,4.30738,2448.9,2448.7,25.8352]
[1751009240866,0.40819,2448.8,2448.7,25.427]
[1751009241764,0.40822,2448.6,2448.5,1.3995]
[1751009241964,0.40822,2448.6,2448.5,33.5575]
[1751009242270,0.40821,2448.7,2448.5,33.96574]
[1751009243364,3.8992,2448.9,2448.5,33.5575]
[1751009243565,3.8992,2448.9,2448.5,34.8833]
[1751009243755,0.40822,2448.6,2448.5,35.29154]
[1751009243960,0.40822,2448.6,2448.5,34.8833]
[1751009244265,0.40821,2448.7,2448.5,3.13354]
[1751009244462,0.40822,2448.6,2448.5,2.7253]
[1751009244863,0.40822,2448.6,2448.5,1.80774]
[1751009245166,0.40822,2448.6,2448.5,33.96274]
[1751009245359,0.40821,2448.7,2448.5,33.96274]
[1751009245964,0.40821,2448.7,2448.6,32.154]
[1751009246963,8.84084074,2448.8,2448.1,5.63173016]
[1751009247266,0.689,2448.7,2448.1,0.6847]
[1751009247566,0.40825,2448.4,2448.2,1.77958]
[1751009247766,0.40825,2448.4,2448.3,6.733]
[1751009248260,0.40825,2448.4,2448.3,32.153]
[1751009250867,0.689,2448.7,2448.3,32.56126]
[1751009251065,0.40822,2448.6,2448.4,1.439]
[1751009251363,0.40821,2448.7,2448.5,25.419]
[1751009251555,0.40821,2448.7,2448.5,26.0789]
[1751009251761,3.616,2448.8,2448.5,27.5179]
[1751009251964,0.4082,2448.7,2448.5,27.92613]
[1751009252166,0.40822,2448.6,2448.5,27.5179]
[1751009252366,0.40822,2448.6,2448.5,30.45244573]
[1751009252760,0.40822,2448.6,2448.5,27.5179]
[1751009253160,0.40822,2448.6,2448.5,25.419]
[1751009254169,0.40826,2448.4,2448.2,0.6599]
[1751009254372,0.40826,2448.4,2448.3,32.15]
[1751009255259,0.40823,2448.6,2448.4,0.40825]
[1751009255461,0.40823,2448.6,2448.5,25.417]
[1751009260168,0.40821,2448.7,2448.5,28.35154573]
[1751009260365,3.2078,2448.8,2448.6,2.51451]
[1751009260567,1.3804257,2448.7,2448.6,2.1063]
[1751009260961,0.4082,2448.7,2448.6,2.1063]
[1751009261166,3.616,2448.8,2448.6,2.51452]
[1751009261475,3.616,2448.8,2448.7,25.8212]
[1751009261669,4.58830988,2448.8,2448.7,26.8354]
[1751009264272,4.58830988,2448.8,2448.7,25.413]
[1751009268178,4.18010988,2448.8,2448.6,0.6839]
[1751009268377,0.4082,2448.7,2448.6,32.8119]
[1751009272087,3.2078,2448.8,2448.6,32.8119]
[1751009272387,3.616,2448.8,2448.6,34.57351]
[1751009272586,3.616,2448.8,2448.7,1.3534]
[1751009272785,4.588401,2448.8,2448.7,1.3534]
[1751009273378,3.616,2448.8,2448.7,1.3534]
[1751009274379,3.2078,2448.8,2448.6,32.8119]
[1751009274584,0.4082,2448.7,2448.6,32.8119]
[1751009277781,0.40824,2448.5,2448.4,7.66833016]
[1751009278081,0.40824,2448.5,2448.4,39.78733016]
[1751009278986,0.40824,2448.5,2448.4,37.75073016]
[1751009279288,0.40824,2448.5,2448.4,35.3268]
[1751009279588,0.40824,2448.5,2448.4,3.2078]
[1751009279796,0.40824,2448.5,2448.4,35.3248]
[1751009280797,3.61604,2448.5,2448.4,32.116]
[1751009280992,3.61604,2448.5,2448.4,34.55877207]
[1751009281190,5.04574,2448.5,2448.4,2.44277207]
[1751009281394,0.40829,2448.2,2448.1,3.24421989]
[1751009281595,0.40829,2448.2,2448.1,25.393]
[1751009282302,0.40828,2448.3,2448.1,25.393]
[1751009282603,0.40829,2448.2,2448.1,25.393]
[1751009283499,0.40828,2448.3,2448.1,25.393]
[1751009283905,0.40826,2448.4,2448.1,28.73583573]
[1751009284105,5.04574,2448.5,2448.2,1.81318]
[1751009284406,0.40826,2448.4,2448.3,25.392]
[1751009284608,0.40826,2448.4,2448.3,26.1074]
[1751009285106,5.04574,2448.5,2448.3,26.1074]
[1751009285903,5.04574,2448.5,2448.3,26.51567]
[1751009286092,0.40825,2448.4,2448.3,6.723]
[1751009286296,0.40825,2448.4,2447.9,3.95041989]
[1751009286297,0.40832,2448.0,2447.9,3.95041989]
[1751009286495,0.40832,2448.0,2447.9,0.7062]
[1751009286695,0.40832,2448.0,2447.8,3.24421989]
[1751009286696,0.40833,2447.9,2447.8,3.24421989]
[1751009286898,0.40835,2447.8,2447.7,3.24421989]
[1751009287100,0.4084,2447.5,2447.4,35.35721989]
[1751009287297,0.4084,2447.5,2447.4,32.113]
[1751009287605,0.40842,2447.4,2447.3,6.723]
[1751009287808,0.40842,2447.4,2447.3,32.113]
[1751009288293,0.40842,2447.4,2447.1,0.40846]
[1751009288502,0.40843,2447.3,2447.2,32.112]
[1751009288693,1.82642,2447.4,2447.2,32.112]
[1751009288900,1.418,2447.4,2447.2,32.52044]
[1751009289103,0.40843,2447.3,2447.2,6.723]
[1751009289307,0.40843,2447.3,2447.2,32.114]
[1751009289702,1.82642,2447.4,2447.2,32.114]
[1751009289902,0.6917,2447.4,2447.2,32.114]
[1751009290104,3.61621,2447.5,2447.3,2.93454573]
[1751009290306,3.61621,2447.5,2447.4,25.391]
[1751009292112,0.40843,2447.3,2447.2,6.723]
[1751009292312,0.40843,2447.3,2447.2,32.115]
[1751009292809,0.40842,2447.4,2447.2,32.115]
[1751009293312,0.40843,2447.3,2447.2,32.115]
[1751009294312,1.02112,2447.2,2446.5,3.24421989]
[1751009294607,6.14234573,2446.8,2446.4,25.389]
[1751009294808,3.2078,2447.4,2446.6,6.14234573]
[1751009295010,6.14234573,2447.4,2446.8,2.93454573]
[1751009295313,0.40849,2447.0,2446.7,38.21166573]
[1751009295514,3.2078,2447.1,2446.8,1.81851]
[1751009295715,3.2078,2447.1,2446.9,0.40849]
[1751009296011,3.61626,2447.1,2446.9,1.4255]
[1751009296416,3.2078,2447.1,2446.9,1.83398]
[1751009296601,3.2078,2447.1,2447.0,25.79748]
[1751009296806,3.2078,2447.1,2447.0,27.22298]
[1751009297217,3.2078,2447.4,2447.1,0.40845]
[1751009297516,0.40843,2447.3,2447.2,1.4255]
[1751009297911,0.40843,2447.3,2447.1,0.7185]
[1751009298212,0.40845,2447.2,2447.1,0.7185]
[1751009298406,1.10025,2447.2,2447.1,0.7185]
[1751009298917,0.40846,2447.1,2447.0,32.097]
[1751009299115,1.10025,2447.2,2447.0,32.097]
[1751009299815,0.40846,2447.1,2447.0,32.097]
[1751009300009,3.2078,2447.1,2446.6,3.2078]
[1751009300211,0.4085,2446.9,2446.8,25.389]
[1751009300614,0.40851,2446.8,2446.6,32.097]
[1751009300813,1.11071,2446.8,2446.6,32.097]
[1751009301210,0.40853,2446.7,2446.6,6.709]
[1751009301410,0.40853,2446.7,2446.6,32.098]
[1751009301609,0.40853,2446.7,2446.5,0.6677]
[1751009301809,0.40853,2446.7,2446.6,25.389]
[1751009303211,1.11073,2446.8,2446.6,25.389]
[1751009303518,1.11073,2446.8,2446.5,7.3777]
[1751009303519,0.40855,2446.6,2446.5,7.3777]
[1751009303719,0.40855,2446.6,2446.5,32.7667]
[1751009304519,0.40855,2446.6,2446.5,26.0547]
[1751009305114,0.40857,2446.5,2446.3,10.32639]
[1751009305314,3.61639,2446.4,2446.1,0.40863]
[1751009305514,0.4086,2446.3,2446.1,0.40863]
[1751009305714,0.4086,2446.3,2446.2,25.387]
[1751009306325,4.34659,2446.4,2446.2,25.387]
[1751009306825,3.2078,2446.7,2446.3,3.34314573]
[1751009307024,0.6915,2446.6,2446.3,4.26104573]
[1751009307221,3.61634,2446.7,2446.4,4.95434573]
[1751009307718,3.2078,2446.7,2446.6,0.40855]
[1751009307919,3.2078,2446.7,2446.6,25.388]
[1751009308119,3.61633,2446.7,2446.6,25.388]
[1751009309522,0.40856,2446.6,2446.4,26.0813]
[1751009309910,0.40857,2446.5,2446.4,27.523]
[1751009310110,0.40857,2446.5,2446.4,26.0813]
[1751009310315,0.40857,2446.5,2446.4,0.6933]
[1751009310721,0.40859,2446.4,2446.1,1.85032]
[1751009310921,0.40859,2446.4,2446.2,32.7899]
[1751009311220,0.40858,2446.5,2446.3,0.4086]
[1751009311429,0.4086,2446.3,2446.2,0.6909]
[1751009311724,0.4086,2446.3,2446.2,32.7889]
[1751009311921,0.4086,2446.3,2446.2,6.711]
[1751009313221,2.93454573,2446.3,2445.8,50.4278]
[1751009313526,0.40867,2445.9,2445.8,51.1243]
[1751009313729,0.40867,2445.9,2445.8,83.2223]
[1751009313915,0.40867,2445.9,2445.8,34.2083]
[1751009314118,0.40867,2445.9,2445.8,32.7955]
[1751009314926,3.61646,2446.0,2445.8,34.138]
[1751009315227,3.61646,2446.0,2445.9,1.3425]
[1751009319324,0.6802,2446.3,2445.9,6.98943127]
[1751009319531,0.40863,2446.2,2446.0,25.389]
[1751009319722,0.40863,2446.2,2446.0,26.7165]
[1751009319927,0.40863,2446.2,2446.0,27.12515]
[1751009320127,0.40863,2446.2,2446.1,1.3275]
[1751009323423,0.40863,2446.1,2446.0,25.389]
[1751009323619,0.40863,2446.1,2446.0,25.79765]
[1751009323925,0.40863,2446.1,2446.0,25.389]
[1751009324429,1.0888,2446.3,2446.1,0.40862]
[1751009324731,1.0888,2446.3,2446.2,0.7297]
[1751009325028,0.40864,2446.1,2445.9,1.84696]
[1751009325226,0.40865,2446.0,2445.9,8.1383]
[1751009325428,0.40865,2446.0,2445.9,33.5243]
[1751009325930,0.40865,2446.0,2445.9,33.93196]
[1751009326131,0.6802,2446.3,2446.0,0.40864]
[1751009326321,0.40862,2446.2,2446.0,0.40863]
[1751009326520,0.4086,2446.3,2446.1,1.4378]
[1751009326721,0.4086,2446.3,2446.2,25.385]
[1751009326918,0.4086,2446.3,2446.2,26.1147]
[1751009327326,1.40551191,2446.3,2446.2,26.1147]
[1751009327531,0.4086,2446.3,2446.2,26.1147]
[1751009328541,0.4086,2446.3,2446.2,25.385]
[1751009328728,0.40865,2446.1,2446.0,6.7]
[1751009328925,0.40865,2446.1,2446.0,32.083]
[1751009329334,0.40865,2446.0,2445.9,0.40866]
[1751009329533,0.40865,2446.0,2445.9,33.87316]
[1751009329832,0.40865,2446.1,2445.9,33.87316]
[1751009330031,0.40865,2446.1,2446.0,0.40865]
[1751009330231,1.11373,2446.2,2446.0,0.40865]
[1751009330431,1.11373,2446.2,2446.0,33.87215]
[1751009331024,0.40864,2446.1,2446.0,33.4635]
[1751009331435,1.11373,2446.2,2446.0,33.87215]
[1751009331632,0.40864,2446.1,2446.0,33.4635]
[1751009331836,0.40864,2446.1,2446.0,33.4625]
[1751009332437,0.40865,2446.0,2445.9,0.40867]
[1751009332637,0.40865,2446.0,2445.9,32.081]
[1751009332938,3.61644,2446.1,2445.9,32.48967]
[1751009333135,3.61644,2446.1,2446.0,25.381]
[1751009334339,4.61501603,2446.1,2446.0,25.381]
[1751009334538,0.40867,2445.9,2445.8,0.6669]
[1751009334738,0.40867,2445.9,2445.8,32.7469]
[1751009335230,3.2078,2446.0,2445.8,32.7469]
[1751009335430,0.40866,2446.0,2445.8,33.15559]
[1751009335631,0.7051,2446.2,2445.8,33.15557]
[1751009335832,0.40865,2446.0,2445.8,34.55957]
[1751009336331,0.7051,2446.2,2445.8,34.1509]
[1751009336528,0.40867,2445.9,2445.8,34.1509]
[1751009336733,0.40867,2445.9,2445.8,34.1489]
[1751009337129,0.40867,2445.9,2445.8,2.0709]
[1751009337339,0.40867,2445.9,2445.8,32.7449]
[1751009338339,0.40872,2445.6,2445.5,1.404]
[1751009338542,0.40872,2445.6,2445.5,32.076]
[1751009339238,0.40872,2445.6,2445.5,6.7]
[1751009339539,0.40872,2445.6,2445.5,32.076]
[1751009339738,0.40875,2445.4,2445.3,0.6922]
[1751009340042,0.40875,2445.4,2445.3,26.0672]
[1751009340239,0.40875,2445.4,2445.3,32.7692]
[1751009341242,0.40875,2445.5,2445.3,25.376]
[1751009341443,0.40875,2445.4,2445.3,25.376]
[1751009342445,0.40877,2445.3,2445.2,7.3609]
[1751009342647,1.09357,2445.3,2445.2,32.7349]
[1751009343139,1.09357,2445.3,2445.2,25.376]
[1751009343447,0.40879,2445.2,2445.1,6.701]
[1751009343747,0.40879,2445.2,2445.1,32.076]
[1751009344047,0.4088,2445.1,2445.0,6.701]
[1751009344240,0.4088,2445.1,2445.0,32.076]
[1751009344442,0.4088,2445.2,2445.0,32.076]
[1751009344744,0.4088,2445.2,2445.0,6.701]
[1751009344945,0.4088,2445.1,2445.0,6.701]
[1751009345146,3.6166,2445.1,2445.0,6.701]
[1751009345444,3.6166,2445.1,2445.0,32.075]
[1751009345640,0.40882,2445.0,2444.8,6.701]
[1751009345847,0.40882,2445.0,2444.9,25.373]
[1751009346338,0.40884,2444.9,2444.8,6.701]
[1751009346540,0.40884,2444.9,2444.8,32.073]
[1751009346939,0.40884,2444.9,2444.8,32.075]
[1751009348149,3.9124,2445.1,2444.8,32.075]
[1751009348443,0.40882,2445.0,2444.8,36.84227549]
[1751009348638,0.40882,2445.0,2444.8,33.89994]
[1751009348844,3.61661,2445.1,2444.8,33.89994]
[1751009349040,0.40882,2445.0,2444.8,33.4911]
[1751009349949,0.40882,2445.0,2444.8,33.89995]
[1751009350245,2.94233549,2445.0,2444.5,0.4089]
[1751009350449,0.6889,2444.9,2444.6,32.8053]
[1751009350638,0.40886,2444.8,2444.6,32.8053]
[1751009350839,0.40886,2444.8,2444.6,34.59848]
[1751009351038,0.6889,2444.9,2444.6,34.59848]
[1751009351343,0.7147,2445.0,2444.7,1.3843]
[1751009351545,0.40882,2445.0,2444.8,28.72318549]
[1751009351740,0.40882,2445.0,2444.8,28.31433549]
[1751009352138,0.40882,2445.0,2444.8,25.372]
[1751009352437,3.2078,2445.1,2444.8,28.31433549]
[1751009352746,3.2078,2445.1,2444.9,2.49643]
[1751009352936,0.40878,2445.3,2445.0,30.10745549]
[1751009353141,0.40877,2445.4,2445.1,1.79309]
[1751009353341,0.40877,2445.4,2445.2,26.7563]
[1751009353547,0.40877,2445.3,2445.1,0.40879]
[1751009353737,0.40877,2445.3,2445.2,25.372]
[1751009354134,0.40879,2445.2,2445.0,0.6722]
[1751009354338,0.40879,2445.2,2445.1,25.372]
[1751009355143,0.4088,2445.1,2445.0,0.6722]
[1751009355344,0.4088,2445.1,2445.0,27.4142]
[1751009356645,7.57313549,2445.5,2444.8,3.2078]
[1751009356849,0.40881,2445.1,2444.9,27.91043]
[1751009357043,0.40881,2445.1,2445.0,1.429]
[1751009357445,0.4088,2445.2,2445.0,4.78015549]
[1751009357740,7.57313549,2445.5,2445.1,1.429]
[1751009357948,0.40879,2445.2,2445.1,1.429]
[1751009358148,4.6308,2445.5,2445.1,1.429]
[1751009358553,0.40873,2445.6,2445.4,2.94233549]
[1751009358852,0.40873,2445.6,2445.5,1.429]
[1751009359052,0.40873,2445.6,2445.5,2.1442]
[1751009359252,3.61649,2445.8,2445.6,0.40871]
[1751009359451,0.4087,2445.7,2445.6,4.37133549]
[1751009360045,3.6165,2445.8,2445.6,4.37133549]
[1751009360242,4.22928,2446.4,2445.7,1.3742]
[1751009360446,0.40866,2446.0,2445.8,28.30933549]
[1751009360649,0.40866,2446.0,2445.9,0.7152]
[1751009360851,0.40864,2446.1,2445.9,2.0894]
[1751009361245,0.40864,2446.1,2445.9,2.49807]
[1751009361651,0.40864,2446.1,2445.9,2.0894]
[1751009362048,0.40865,2446.0,2445.9,2.0894]
[1751009362248,0.40864,2446.1,2445.9,2.0894]
[1751009362954,0.40863,2446.2,2445.9,2.49807]
[1751009363355,0.40864,2446.1,2445.9,2.49807]
[1751009363555,0.40863,2446.2,2445.9,2.49807]
[1751009363753,0.40863,2446.2,2446.0,0.40864]
[1751009363958,0.40863,2446.2,2446.0,1.3491]
[1751009364255,0.40862,2446.2,2446.0,4.98503549]
[1751009364653,0.40862,2446.2,2446.1,25.36]
[1751009364851,0.40862,2446.2,2446.1,26.7091]
[1751009366854,3.2078,2446.4,2446.1,26.7091]
[1751009367159,0.40862,2446.2,2446.1,26.7091]
[1751009367351,0.40862,2446.2,2446.1,25.36]
[1751009368958,3.2078,2446.4,2446.1,25.36]
[1751009369159,0.40861,2446.3,2446.1,25.76863]
[1751009369559,0.40862,2446.2,2446.1,25.76863]
[1751009369760,0.40861,2446.3,2446.1,25.76864]
[1751009369956,0.40862,2446.2,2446.1,25.76864]
[1751009370152,0.40861,2446.3,2446.1,25.76864]
[1751009370560,0.40861,2446.3,2446.1,25.76862]
[1751009371163,3.61639,2446.4,2446.2,0.40862]
[1751009371361,3.61639,2446.4,2446.3,25.352]
[1751009371563,0.40859,2446.4,2446.3,26.0604]
[1751009373570,3.61639,2446.4,2446.3,26.0604]
[1751009373767,6.15013549,2446.4,2446.3,25.347]
[1751009373965,7.97622549,2446.4,2446.3,25.347]
[1751009374758,6.55872549,2446.4,2446.3,25.347]
[1751009375358,3.61639,2446.4,2446.3,25.347]
[1751009375560,6.55872549,2446.4,2446.3,25.347]
[1751009376855,0.4086,2446.3,2446.2,25.344]
[1751009377062,3.35093549,2446.3,2446.2,25.344]
[1751009377564,3.35093549,2446.3,2445.9,0.6722]
[1751009377565,0.40865,2446.0,2445.8,0.40867]
[1751009377767,0.40865,2446.0,2445.9,25.343]
[1751009383470,3.2078,2446.4,2445.9,28.28533549]
[1751009383865,0.40861,2446.3,2446.1,3.35096549]
[1751009384065,3.6164,2446.4,2446.2,25.74562]
[1751009384268,3.6164,2446.4,2446.2,26.43482]
[1751009384571,0.4086,2446.4,2446.2,26.43482]
[1751009385370,0.4086,2446.4,2446.3,0.4086]
[1751009385566,1.11378,2446.5,2446.3,0.4086]
[1751009385972,0.40858,2446.5,2446.3,2.94233549]
[1751009386269,0.40858,2446.5,2446.3,4.31543549]
[1751009386469,0.40858,2446.5,2446.3,4.72403549]
[1751009386770,0.40859,2446.4,2446.3,4.31543549]
[1751009386973,0.40858,2446.5,2446.3,4.72403549]
[1751009387374,0.40858,2446.5,2446.3,4.31543549]
[1751009387573,3.2078,2446.7,2446.3,4.72403549]
[1751009387775,0.40857,2446.5,2446.3,4.72403549]
[1751009388274,1.00865901,2446.4,2446.3,4.72403549]
[1751009388476,1.41724901,2446.4,2446.3,4.72403549]
[1751009388776,1.00865901,2446.4,2446.3,4.72403549]
[1751009389977,1.00939078,2446.4,2446.3,4.72403549]
[1751009390177,1.00939143,2446.4,2446.3,4.72403549]
[1751009391178,1.41798143,2446.4,2446.3,4.72403549]
[1751009393081,1.00939143,2446.4,2446.3,4.72403549]
[1751009394275,1.41798143,2446.4,2446.3,4.31543549]
[1751009394475,1.41798143,2446.4,2446.3,1.3731]
[1751009395682,1.41798143,2446.4,2446.3,1.7817]
[1751009396085,1.00939143,2446.4,2446.3,1.7817]
[1751009396386,1.41798143,2446.4,2446.3,1.7817]